[Event "ROU-ch Women 2021"]
[Site "Iasi"]
[Date "2021.04.20"]
[Round "3.2"]
[White "Sandu, Mihaela"]
[Black "Lehaci, Miruna-Daria"]
[Result "1/2-1/2"]
[ECO "B58"]
[WhiteElo "2268"]
[BlackElo "2188"]
[Annotator "NA"]
[PlyCount "139"]
[EventDate "2021.04.19"]
[EventType "swiss"]
[EventCountry "ROU"]
[SourceTitle "playchess.com"]
[Source "ChessBase"]
[SourceQuality "1"]
[TimeControl "5400+30"]

1. e4 {[%emt 0:00:00]} c5 {[%emt 0:04:28]} 2. Nf3 {[%emt 0:00:00]} d6 {[%emt 0:00:03]} 3. d4 {[%emt 0:00:00]} cxd4 {[%emt 0:00:07]} 4. Nxd4 {[%emt 0:00:16]} Nf6 {[%emt 0:00:06]} 5. Nc3 {[%emt 0:00:03]} Nc6 {[%emt 0:00:04]} 6. Be2 {[%emt 0:00:20]} e5 {[%emt 0:00:12]} 7. Nf3 {[%emt 0:00:37]} h6 {[%emt 0:00:12]} 8. O-O {[%emt 0:00:11]} Be7 {[%emt 0:00:04]} 9. Re1 {[%emt 0:00:55]} O-O {[%emt 0:00:06]} 10. h3 {[%emt 0:01:52]} Be6 {[%emt 0:00:09]} 11. Bf1 {[%emt 0:00:03]} Qa5 {[%emt 0:00:12]} 12. Bd2 {[%emt 0:01:39]} Qd8 {[%emt 0:07:09]} 13. a4 {[%emt 0:14:05]} Re8 {[%emt 0:00:00]} 14. Nb5 {[%emt 0:05:16]} a6 {[%emt 0:01:53]} 15. Na3 {[%emt 0:00:48]} d5 {[%emt 0:00:24]} 16. exd5 {[%emt 0:00:17]} Nxd5 {[%emt 0:08:12]} 17. c4 {[%emt 0:08:08]} Nc7 {[%emt 0:00:00]} 18. Nc2 {[%emt 0:13:49]} f6 {[%emt 0:03:42]} 19. b4 {[%emt 0:00:00]} Bf7 {[%emt 0:09:40]} 20. b5 {[%emt 0:00:00]} Nd4 {[%emt 0:03:46]} 21. Nfxd4 {[%emt 0:04:15]} exd4 {[%emt 0:00:07]} 22. Qg4 {[%emt 0:02:57]} h5 {[%emt 0:18:24]} 23. Qxd4 {[%emt 0:01:13]} Qxd4 {[%emt 0:00:00]} 24. Nxd4 {[%emt 0:00:07]} axb5 {[%emt 0:01:37]} 25. axb5 {[%emt 0:04:25]} Rxa1 {[%emt 0:16:26]} 26. Rxa1 {[%emt 0:04:45]} Ne6 {[%emt 0:05:30]} 27. Nxe6 {[%emt 0:00:00]} Bxe6 {[%emt 0:03:51]} 28. Be3 {[%emt 0:05:24]} Bd6 {[%emt 0:06:58]} 29. Be2 {[%emt 0:11:15]} Rc8 {[%emt 0:00:00]} 30. Ra7 {[%emt 0:03:34]} Bxc4 {[%emt 0:00:00]} 31. Bxc4+ {[%emt 0:00:12]} Rxc4 {[%emt 0:00:00]} 32. Rxb7 {[%emt 0:00:15]} Bf4 {[%emt 0:00:00]} 33. Bxf4 {[%emt 0:03:33]} Rxf4 {[%emt 0:00:00]} 34. g3 {[%emt 0:00:11]} Rb4 {[%emt 0:00:00]} 35. h4 {[%emt 0:00:04]} Kh7 {[%emt 0:00:20]} 36. Kg2 {[%emt 0:00:32]} Kg6 {[%emt 0:00:43]} 37. b6 {[%emt 0:00:32]} Rb3 {[%emt 0:02:51]} 38. Rb8 {[%emt 0:02:29]} Kf5 {[%emt 0:07:43]} 39. b7 {[%emt 0:07:03]} Kg6 {[%emt 0:00:00]} 40. f3 {[%emt 0:01:14]} Rb2+ {[%emt 0:00:00]} 41. Kf1 {[%emt 0:00:06]} Kf5 {[%emt 0:00:00]} 42. Ke1 {[%emt 0:00:08]} Kg6 {[%emt 0:00:00]} 43. Kd1 {[%emt 0:04:51]} Rb3 {[%emt 0:00:00]} 44. Kc2 {[%emt 0:00:06]} Rb5 {[%emt 0:00:00]} 45. g4 {[%emt 0:01:34]} hxg4 {[%emt 0:00:00]} 46. fxg4 {[%emt 0:00:03]} Rb6 {[%emt 0:00:00]} 47. Kc3 {[%emt 0:00:36]} Rb1 {[%emt 0:00:00]} 48. Kc4 {[%emt 0:00:37]} Kf7 {[%emt 0:00:25]} 49. h5 {[%emt 0:00:11]} Rc1+ {[%emt 0:00:07]} 50. Kd3 {[%emt 0:00:15]} Rb1 {[%emt 0:00:19]} 51. Kc2 {[%emt 0:02:01]} Rb5 {[%emt 0:00:08]} 52. Kc3 {[%emt 0:00:56]} Rb1 {[%emt 0:00:05]} 53. Kc4 {[%emt 0:00:06]} Rc1+ {[%emt 0:00:07]} 54. Kd5 {[%emt 0:00:04]} Rd1+ {[%emt 0:00:13]} 55. Kc6 {[%emt 0:00:04]} Rc1+ {[%emt 0:00:07]} 56. Kd7 {[%emt 0:00:03]} Rd1+ {[%emt 0:00:04]} 57. Kc7 {[%emt 0:00:02]} Rc1+ {[%emt 0:00:04]} 58. Kd6 {[%emt 0:00:03]} Rd1+ {[%emt 0:00:05]} 59. Kc5 {[%emt 0:00:06]} Rc1+ {[%emt 0:00:05]} 60. Kd5 {[%emt 0:00:04]} Rd1+ {[%emt 0:00:05]} 61. Ke4 {[%emt 0:00:03]} Re1+ {[%emt 0:00:12]} 62. Kf5 {[%emt 0:00:30]} Rf1+ {[%emt 0:00:04]} 63. Ke4 {[%emt 0:00:03]} Re1+ {[%emt 0:00:04]} 64. Kf4 {[%emt 0:00:07]} Rf1+ {[%emt 0:00:04]} 65. Kg3 {[%emt 0:00:03]} Rg1+ {[%emt 0:00:19]} 66. Kf2 {[%emt 0:00:11]} Rb1 {[%emt 0:00:04]} 67. Kg2 {[%emt 0:01:52]} Rb3 {[%emt 0:00:21]} 68. h6 {[%emt 0:00:06]} Kg6 {[%emt 0:00:18]} 69. hxg7 {[%emt 0:00:12]} Kxg7 {[%emt 0:00:04]} 70. Kf2 {[%emt 0:00:04]} 1/2-1/2

[Event "ROU-ch Women 2021"]
[Site "Iasi"]
[Date "2021.04.20"]
[Round "3.3"]
[White "Obada, Ema"]
[Black "Pancu, Aureliana-Eugenia"]
[Result "1-0"]
[ECO "C00"]
[WhiteElo "1940"]
[BlackElo "1878"]
[Annotator "NA"]
[PlyCount "63"]
[EventDate "2021.04.19"]
[EventType "swiss"]
[EventCountry "ROU"]
[SourceTitle "playchess.com"]
[Source "ChessBase"]
[SourceQuality "1"]
[TimeControl "5400+30"]

1. e4 {[%emt 0:00:00]} e6 {[%emt 0:00:00]} 2. d3 {[%emt 0:00:00]} d5 {[%emt 0:00:21]} 3. Nd2 {[%emt 0:00:00]} Nf6 {[%emt 0:00:46]} 4. g3 {[%emt 0:00:10]} dxe4 {[%emt 0:02:00]} 5. dxe4 {[%emt 0:00:07]} e5 {[%emt 0:03:06]} 6. Bg2 {[%emt 0:01:17]} Bc5 {[%emt 0:01:42]} 7. Ngf3 {[%emt 0:01:20]} Nc6 {[%emt 0:02:09]} 8. O-O {[%emt 0:00:36]} O-O {[%emt 0:00:15]} 9. c3 {[%emt 0:01:04]} Bg4 {[%emt 0:01:49]} 10. h3 {[%emt 0:01:17]} Bh5 {[%emt 0:01:40]} 11. Qe2 {[%emt 0:01:22]} Qe7 {[%emt 0:08:00]} 12. b4 {[%emt 0:02:34]} Bd6 {[%emt 0:02:50]} 13. Nc4 {[%emt 0:08:51]} Qe6 {[%emt 0:03:41]} 14. g4 {[%emt 0:11:44]} Bg6 {[%emt 0:00:39]} 15. Nh4 {[%emt 0:01:03]} h6 {[%emt 0:12:28]} 16. Nf5 {[%emt 0:03:57]} a6 {[%emt 0:02:19]} 17. Be3 {[%emt 0:02:09]} Rfd8 {[%emt 0:02:17]} 18. a4 {[%emt 0:09:06]} Bf8 {[%emt 0:05:18]} 19. Nd2 {[%emt 0:04:19]} Rd7 {[%emt 0:00:50]} 20. h4 {[%emt 0:12:18]} Rad8 {[%emt 0:01:35]} 21. Bh3 {[%emt 0:01:29]} Bxf5 {[%emt 0:02:23]} 22. exf5 {[%emt 0:01:54]} Qd5 {[%emt 0:03:43]} 23. g5 {[%emt 0:06:16]} hxg5 {[%emt 0:02:59]} 24. hxg5 {[%emt 0:01:07]} Ne4 {[%emt 0:00:17]} 25. c4 {[%emt 0:01:02]} Nc3 {[%emt 0:01:18]} 26. Qh5 {[%emt 0:00:23]} Qd3 {[%emt 0:06:25]} 27. g6 {[%emt 0:00:38]} Bxb4 {[%emt 0:00:51]} 28. Qh7+ {[%emt 0:01:09]} Kf8 {[%emt 0:00:02]} 29. Qh8+ {[%emt 0:06:38]} Ke7 {[%emt 0:00:34]} 30. Qxg7 {[%emt 0:00:19]} Ke8 {[%emt 0:05:40]} 31. c5 {[%emt 0:02:18]} Qd5 {[%emt 0:20:36]} 32. Qh8+ {[%emt 0:00:09]} 1-0

[Event "ROU-ch Women 2021"]
[Site "Iasi"]
[Date "2021.04.20"]
[Round "3.4"]
[White "Maria, Lia-Alexandra"]
[Black "Andries, Alexia"]
[Result "1-0"]
[ECO "B42"]
[WhiteElo "1713"]
[BlackElo "1553"]
[Annotator "NA"]
[PlyCount "85"]
[EventDate "2021.04.19"]
[EventType "swiss"]
[EventCountry "ROU"]
[SourceTitle "playchess.com"]
[Source "ChessBase"]
[SourceQuality "1"]
[TimeControl "5400+30"]

1. e4 {[%emt 0:00:00]} c5 {[%emt 0:00:00]} 2. Nf3 {[%emt 0:00:00]} e6 {[%emt 0:00:31]} 3. d4 {[%emt 0:00:00]} cxd4 {[%emt 0:00:16]} 4. Nxd4 {[%emt 0:00:11]} a6 {[%emt 0:00:06]} 5. Bd3 {[%emt 0:00:20]} Nf6 {[%emt 0:03:05]} 6. O-O {[%emt 0:00:32]} d6 {[%emt 0:01:45]} 7. Nd2 {[%emt 0:01:11]} Be7 {[%emt 0:02:51]} 8. a4 {[%emt 0:03:03]} b6 {[%emt 0:02:27]} 9. Nc4 {[%emt 0:02:32]} Bb7 {[%emt 0:00:45]} 10. Re1 {[%emt 0:01:36]} Nbd7 {[%emt 0:03:34]} 11. b4 {[%emt 0:06:43]} d5 {[%emt 0:06:03]} 12. exd5 {[%emt 0:01:15]} Nxd5 {[%emt 0:02:04]} 13. b5 {[%emt 0:01:41]} axb5 {[%emt 0:00:28]} 14. Nxb5 {[%emt 0:00:36]} O-O {[%emt 0:00:27]} 15. c3 {[%emt 0:07:14]} Nc5 {[%emt 0:04:50]} 16. Bc2 {[%emt 0:03:43]} Ba6 {[%emt 0:03:42]} 17. Bd2 {[%emt 0:03:53]} Bf6 {[%emt 0:12:54]} 18. Qh5 {[%emt 0:03:19]} g6 {[%emt 0:01:04]} 19. Qf3 {[%emt 0:00:36]} Bg7 {[%emt 0:01:03]} 20. Qg3 {[%emt 0:08:24]} Bb7 {[%emt 0:06:47]} 21. h4 {[%emt 0:03:08]} Qb8 {[%emt 0:10:27]} 22. Ncd6 {[%emt 0:04:52]} Bc6 {[%emt 0:01:59]} 23. Qh3 {[%emt 0:05:38]} Nb7 {[%emt 0:05:46]} 24. Ne4 {[%emt 0:04:00]} Na5 {[%emt 0:01:59]} 25. Rab1 {[%emt 0:13:29]} Nc4 {[%emt 0:01:50]} 26. Bc1 {[%emt 0:02:53]} Re8 {[%emt 0:07:36]} 27. Bb3 {[%emt 0:07:37]} Na5 {[%emt 0:00:30]} 28. Ba2 {[%emt 0:01:03]} h6 {[%emt 0:04:10]} 29. c4 {[%emt 0:01:37]} Ne7 {[%emt 0:01:08]} 30. Ned6 {[%emt 0:00:45]} Rd8 {[%emt 0:02:02]} 31. Nxf7 {[%emt 0:01:18]} Kxf7 {[%emt 0:02:37]} 32. Qxe6+ {[%emt 0:00:09]} Kf8 {[%emt 0:00:04]} 33. Qxe7+ {[%emt 0:00:27]} Kg8 {[%emt 0:00:07]} 34. c5+ {[%emt 0:01:29]} Kh8 {[%emt 0:00:07]} 35. Nd6 {[%emt 0:01:15]} Rd7 {[%emt 0:01:29]} 36. Qe6 {[%emt 0:01:43]} Kh7 {[%emt 0:01:13]} 37. h5 {[%emt 0:00:49]} g5 {[%emt 0:00:12]} 38. Qg6+ {[%emt 0:00:28]} Kh8 {[%emt 0:00:06]} 39. Bb2 {[%emt 0:02:05]} Bxb2 {[%emt 0:00:34]} 40. Qxh6+ {[%emt 0:00:38]} Rh7 {[%emt 0:00:06]} 41. Nf7+ {[%emt 0:00:08]} Kg8 {[%emt 0:00:07]} 42. Nxg5+ {[%emt 0:00:07]} Kh8 {[%emt 0:00:10]} 43. Qxh7# {[%emt 0:00:09]} 1-0

[Event "ROU-ch Women 2021"]
[Site "Iasi"]
[Date "2021.04.20"]
[Round "3.5"]
[White "Cosman, Andreea-Marioara"]
[Black "Anghel, Maria"]
[Result "1-0"]
[ECO "D27"]
[WhiteElo "2164"]
[BlackElo "1918"]
[Annotator "NA"]
[PlyCount "87"]
[EventDate "2021.04.19"]
[EventType "swiss"]
[EventCountry "ROU"]
[SourceTitle "playchess.com"]
[Source "ChessBase"]
[SourceQuality "1"]
[TimeControl "5400+30"]

1. d4 {[%emt 0:01:55]} d5 {[%emt 0:00:00]} 2. c4 {[%emt 0:00:08]} dxc4 {[%emt 0:00:08]} 3. Nf3 {[%emt 0:00:07]} Nf6 {[%emt 0:00:07]} 4. e3 {[%emt 0:00:04]} a6 {[%emt 0:00:06]} 5. Bxc4 {[%emt 0:00:05]} e6 {[%emt 0:00:07]} 6. O-O {[%emt 0:00:10]} c5 {[%emt 0:00:19]} 7. b3 {[%emt 0:01:07]} cxd4 {[%emt 0:00:18]} 8. Nxd4 {[%emt 0:01:35]} Bd6 {[%emt 0:00:27]} 9. Be2 {[%emt 0:09:04]} e5 {[%emt 0:01:41]} 10. Nf3 {[%emt 0:00:57]} O-O {[%emt 0:00:42]} 11. Ba3 {[%emt 0:02:17]} Bxa3 {[%emt 0:07:20]} 12. Nxa3 {[%emt 0:05:28]} Qe7 {[%emt 0:13:24]} 13. Nc4 {[%emt 0:00:09]} Rd8 {[%emt 0:05:39]} 14. Qc2 {[%emt 0:00:18]} Nc6 {[%emt 0:02:41]} 15. Rfd1 {[%emt 0:10:29]} Bg4 {[%emt 0:07:25]} 16. h3 {[%emt 0:11:34]} Bh5 {[%emt 0:08:55]} 17. Qb2 {[%emt 0:13:55]} Bxf3 {[%emt 0:14:56]} 18. Bxf3 {[%emt 0:01:07]} e4 {[%emt 0:00:29]} 19. Be2 {[%emt 0:00:52]} b5 {[%emt 0:00:59]} 20. Na3 {[%emt 0:03:02]} Nb4 {[%emt 0:14:14]} 21. Nc2 {[%emt 0:03:06]} Nxc2 {[%emt 0:02:17]} 22. Qxc2 {[%emt 0:00:16]} Rac8 {[%emt 0:03:41]} 23. Rxd8+ {[%emt 0:03:34]} Qxd8 {[%emt 0:02:25]} 24. Rd1 {[%emt 0:00:58]} Qe8 {[%emt 0:02:35]} 25. Qd2 {[%emt 0:01:38]} h6 {[%emt 0:01:34]} 26. Qa5 {[%emt 0:02:44]} Qc6 {[%emt 0:01:38]} 27. a4 {[%emt 0:02:22]} Rb8 {[%emt 0:03:19]} 28. axb5 {[%emt 0:04:16]} axb5 {[%emt 0:00:16]} 29. Rd8+ {[%emt 0:00:47]} Rxd8 {[%emt 0:00:23]} 30. Qxd8+ {[%emt 0:00:04]} Kh7 {[%emt 0:00:28]} 31. Qb8 {[%emt 0:00:07]} Qc1+ {[%emt 0:01:33]} 32. Bf1 {[%emt 0:01:19]} Nd5 {[%emt 0:04:04]} 33. Qxb5 {[%emt 0:00:41]} Nc3 {[%emt 0:00:44]} 34. Qc4 {[%emt 0:00:31]} f5 {[%emt 0:01:31]} 35. b4 {[%emt 0:00:20]} Qd2 {[%emt 0:00:29]} 36. b5 {[%emt 0:01:30]} Nd1 {[%emt 0:00:34]} 37. Qe2 {[%emt 0:00:48]} Qd6 {[%emt 0:00:29]} 38. b6 {[%emt 0:02:10]} Nc3 {[%emt 0:00:26]} 39. Qc4 {[%emt 0:01:58]} Nd5 {[%emt 0:00:29]} 40. b7 {[%emt 0:00:53]} Qd8 {[%emt 0:00:36]} 41. Qxd5 {[%emt 0:00:06]} Qxd5 {[%emt 0:00:25]} 42. b8=Q {[%emt 0:00:08]} Qd1 {[%emt 0:00:34]} 43. Qe5 {[%emt 0:00:57]} Qd7 {[%emt 0:00:27]} 44. Bc4 {[%emt 0:00:22]} 1-0

[Event "ROU-ch Women 2021"]
[Site "Iasi"]
[Date "2021.04.20"]
[Round "3.6"]
[White "Marcu, Daria-Ana"]
[Black "Pirvan, Maria"]
[Result "0-1"]
[ECO "B33"]
[WhiteElo "1533"]
[BlackElo "1529"]
[Annotator "NA RC"]
[PlyCount "57"]
[EventDate "2021.04.19"]
[EventType "swiss"]
[EventCountry "ROU"]
[SourceTitle "playchess.com"]
[Source "ChessBase"]
[SourceQuality "1"]
[TimeControl "5400+30"]

1. e4 {[%emt 0:00:00]} c5 {[%emt 0:00:00]} 2. Nf3 {[%emt 0:00:00]} Nc6 {[%emt 0:00:00]} 3. d4 {[%emt 0:00:00]} cxd4 {[%emt 0:00:00]} 4. Nxd4 {[%emt 0:00:00]} Nf6 {[%emt 0:00:00]} 5. Nc3 {[%emt 0:00:02]} e5 {[%emt 0:00:00]} 6. Ndb5 {[%emt 0:00:06]} d6 {[%emt 0:00:00]} 7. Bg5 {[%emt 0:00:14]} a6 {[%emt 0:00:04]} 8. Na3 {[%emt 0:00:06]} b5 {[%emt 0:00:05]} 9. Nd5 {[%emt 0:00:20]} Be7 {[%emt 0:00:03]} 10. Bxf6 {[%emt 0:00:14]} Bxf6 {[%emt 0:00:03]} 11. c3 {[%emt 0:00:11]} Rb8 {[%emt 0:00:05]} 12. Be2 {[%emt 0:00:24]} O-O {[%emt 0:00:11]} 13. Nc2 {[%emt 0:00:07]} Bg5 {[%emt 0:00:09]} 14. O-O {[%emt 0:00:12]} Be6 {[%emt 0:00:06]} 15. Ncb4 {[%emt 0:00:48]} Nxb4 {[%emt 0:02:45]} 16. Nxb4 {[%emt 0:00:10]} Qb6 {[%emt 0:00:20]} 17. a4 {[%emt 0:01:34]} a5 {[%emt 0:10:25]} 18. Nd3 {[%emt 0:00:43]} bxa4 {[%emt 0:09:57]} 19. Qxa4 {[%emt 0:01:43]} Ra8 {[%emt 0:08:32]} 20. Ra3 {[%emt 0:16:07]} Rfb8 {[%emt 0:10:38]} 21. Qd1 {[%emt 0:16:13]} Bb3 {[%emt 0:21:34]} 22. Qa1 {[%emt 0:01:17]} Be7 {[%emt 0:03:25]} 23. Nc1 {[%emt 0:02:27]} Bc2 {[%emt 0:05:21]} 24. b4 {[%emt 0:02:58]} Bxe4 {[%emt 0:01:46]} 25. bxa5 {[%emt 0:01:40]} Qc6 {[%emt 0:04:21]} 26. a6 {[%emt 0:02:15]} Bxg2 {[%emt 0:03:55]} 27. Rd1 {[%emt 0:05:59]} Bh3 {[%emt 0:02:21]} 28. Bf1 {[%emt 0:01:47]} Qf3 {[%emt 0:03:57]} 29. Rd3 {[%emt 0:00:43]} 0-1

[Event "ROU-ch Women 2021"]
[Site "Iasi"]
[Date "2021.04.21"]
[Round "4.1"]
[White "Obada, Ema"]
[Black "Ciolacu, Alessia-Mihaela"]
[Result "1-0"]
[ECO "C77"]
[WhiteElo "1940"]
[BlackElo "2052"]
[Annotator "ChessBase"]
[PlyCount "85"]
[EventDate "2021.04.19"]
[EventType "swiss"]
[EventCountry "ROU"]
[SourceTitle "playchess.com"]
[Source "ChessBase"]
[SourceQuality "1"]
[TimeControl "5400+30"]

1. e4 {[%emt 0:00:00]} e5 {[%emt 0:00:00]} 2. Nf3 {[%emt 0:00:00]} Nc6 {[%emt 0:00:00]} 3. Bb5 {[%emt 0:00:00]} a6 {[%emt 0:00:00]} 4. Ba4 {[%emt 0:00:00]} Nf6 {[%emt 0:00:00]} 5. d3 {[%emt 0:00:00]} d6 {[%emt 0:00:02]} 6. c3 {[%emt 0:00:00]} g6 {[%emt 0:00:10]} 7. O-O {[%emt 0:00:08]} Bg7 {[%emt 0:00:06]} 8. Re1 {[%emt 0:00:17]} O-O {[%emt 0:00:24]} 9. h3 {[%emt 0:03:54]} b5 {[%emt 0:00:30]} 10. Bc2 {[%emt 0:00:10]} Bb7 {[%emt 0:00:34]} 11. Bg5 {[%emt 0:01:21]} h6 {[%emt 0:00:56]} 12. Bh4 {[%emt 0:00:32]} Nb8 {[%emt 0:03:01]} 13. d4 {[%emt 0:05:28]} Nbd7 {[%emt 0:01:50]} 14. Nbd2 {[%emt 0:01:11]} c5 {[%emt 0:00:43]} 15. Nf1 {[%emt 0:02:01]} Qc7 {[%emt 0:02:08]} 16. a4 {[%emt 0:07:41]} Rfe8 {[%emt 0:05:07]} 17. dxe5 {[%emt 0:02:39]} dxe5 {[%emt 0:03:50]} 18. N3h2 {[%emt 0:04:40]} c4 {[%emt 0:04:53]} 19. Qf3 {[%emt 0:01:24]} Nh5 {[%emt 0:10:00]} 20. Ne3 {[%emt 0:06:08]} Nf4 {[%emt 0:05:00]} 21. Bg3 {[%emt 0:06:53]} Nd3 {[%emt 0:12:50]} 22. Bxd3 {[%emt 0:00:39]} cxd3 {[%emt 0:00:02]} 23. Nd5 {[%emt 0:03:04]} Bxd5 {[%emt 0:03:15]} 24. exd5 {[%emt 0:00:07]} Qc4 {[%emt 0:00:35]} 25. axb5 {[%emt 0:18:20]} axb5 {[%emt 0:03:52]} 26. Rxa8 {[%emt 0:00:14]} Rxa8 {[%emt 0:00:01]} 27. Nf1 {[%emt 0:00:21]} f5 {[%emt 0:22:44]} 28. Nd2 {[%emt 0:08:06]} Qc5 {[%emt 0:01:08]} 29. Qxd3 {[%emt 0:02:12]} e4 {[%emt 0:00:07]} 30. Qe2 {[%emt 0:04:03]} Qxd5 {[%emt 0:01:03]} 31. f3 {[%emt 0:01:02]} exf3 {[%emt 0:07:03]} 32. Nxf3 {[%emt 0:00:47]} Nf6 {[%emt 0:00:39]} 33. Rd1 {[%emt 0:06:23]} Qe4 {[%emt 0:01:52]} 34. Qxb5 {[%emt 0:00:42]} Qc2 {[%emt 0:03:31]} 35. Re1 {[%emt 0:02:40]} Rd8 {[%emt 0:01:16]} 36. Qe2 {[%emt 0:00:43]} Qa4 {[%emt 0:00:53]} 37. Qe6+ {[%emt 0:00:31]} Kh7 {[%emt 0:00:15]} 38. Ne5 {[%emt 0:02:41]} f4 {[%emt 0:02:12]} 39. Bf2 {[%emt 0:00:46]} Qc2 {[%emt 0:00:22]} 40. Bd4 {[%emt 0:01:25]} Qxb2 {[%emt 0:04:20]} 41. Nc4 {[%emt 0:00:48]} Qb5 {[%emt 0:02:41]} 42. Bxf6 {[%emt 0:00:15]} Bxf6 {[%emt 0:00:26]} 43. Qxf6 {[%emt 0:00:06]} 1-0

[Event "ROU-ch Women 2021"]
[Site "Iasi"]
[Date "2021.04.21"]
[Round "4.2"]
[White "Peptan, Corina-Isabela"]
[Black "Maria, Lia-Alexandra"]
[Result "1-0"]
[ECO "E10"]
[WhiteElo "2392"]
[BlackElo "1713"]
[Annotator "ChessBase"]
[PlyCount "79"]
[EventDate "2021.04.19"]
[EventType "swiss"]
[EventCountry "ROU"]
[SourceTitle "playchess.com"]
[Source "ChessBase"]
[SourceQuality "1"]
[TimeControl "5400+30"]

1. d4 {[%emt 0:00:00]} Nf6 {[%emt 0:00:00]} 2. c4 {[%emt 0:00:10]} e6 {[%emt 0:00:00]} 3. g3 {[%emt 0:05:16]} c5 4. Nf3 {[%emt 0:05:31]} b6 {[%emt 0:12:42]} 5. d5 {[%emt 0:00:30]} exd5 {[%emt 0:00:30]} 6. cxd5 {[%emt 0:00:09]} d6 {[%emt 0:04:49]} 7. Nc3 {[%emt 0:00:24]} Nbd7 {[%emt 0:03:04]} 8. Bg2 {[%emt 0:02:08]} g6 {[%emt 0:03:24]} 9. O-O {[%emt 0:14:18]} a6 {[%emt 0:03:29]} 10. a4 {[%emt 0:00:28]} Bg7 {[%emt 0:00:52]} 11. Nd2 {[%emt 0:13:50]} Bb7 {[%emt 0:03:08]} 12. Qb3 {[%emt 0:11:48]} O-O {[%emt 0:01:49]} 13. Nc4 {[%emt 0:00:02]} Ne8 {[%emt 0:06:13]} 14. Bf4 {[%emt 0:01:02]} Be5 {[%emt 0:01:20]} 15. Bxe5 {[%emt 0:07:27]} dxe5 {[%emt 0:00:22]} 16. Rfd1 {[%emt 0:00:33]} Kg7 {[%emt 0:05:24]} 17. Ne4 {[%emt 0:09:06]} Qc7 {[%emt 0:02:47]} 18. d6 {[%emt 0:05:51]} Qc6 {[%emt 0:03:12]} 19. Ne3 {[%emt 0:00:17]} Qc8 {[%emt 0:06:43]} 20. Nd5 {[%emt 0:01:29]} c4 {[%emt 0:02:30]} 21. Qc3 {[%emt 0:00:45]} Bxd5 {[%emt 0:01:41]} 22. Rxd5 {[%emt 0:00:07]} h6 {[%emt 0:01:53]} 23. Rc1 {[%emt 0:01:03]} f5 {[%emt 0:05:02]} 24. Rxe5 {[%emt 0:00:30]} Nxe5 {[%emt 0:01:16]} 25. Qxe5+ {[%emt 0:00:02]} Kg8 {[%emt 0:02:16]} 26. Qd5+ {[%emt 0:03:57]} Rf7 {[%emt 0:02:43]} 27. d7 {[%emt 0:03:35]} Qxd7 {[%emt 0:01:12]} 28. Qxa8 {[%emt 0:00:11]} fxe4 {[%emt 0:00:33]} 29. Qxe4 {[%emt 0:00:03]} Kh7 {[%emt 0:01:39]} 30. Qxc4 {[%emt 0:00:03]} b5 {[%emt 0:01:35]} 31. axb5 {[%emt 0:00:07]} axb5 {[%emt 0:00:30]} 32. Qb3 {[%emt 0:00:30]} Nd6 {[%emt 0:03:42]} 33. Bd5 {[%emt 0:02:46]} Rf6 {[%emt 0:01:15]} 34. Qd3 {[%emt 0:01:58]} Qa7 {[%emt 0:02:20]} 35. e3 {[%emt 0:00:07]} Qe7 {[%emt 0:01:34]} 36. Qc3 {[%emt 0:01:46]} Qf8 37. Qc7+ {[%emt 0:01:56]} Nf7 {[%emt 0:01:22]} 38. Ra1 {[%emt 0:01:42]} h5 39. Ra7 {[%emt 0:05:29]} Qb4 {[%emt 0:06:21]} 40. Qc3 {[%emt 0:00:49]} 1-0

[Event "ROU-ch Women 2021"]
[Site "Iasi"]
[Date "2021.04.21"]
[Round "4.3"]
[White "Lehaci, Miruna-Daria"]
[Black "Cosman, Andreea-Marioara"]
[Result "1-0"]
[ECO "B92"]
[WhiteElo "2188"]
[BlackElo "2164"]
[Annotator "ChessBase"]
[PlyCount "83"]
[EventDate "2021.04.19"]
[EventType "swiss"]
[EventCountry "ROU"]
[SourceTitle "playchess.com"]
[Source "ChessBase"]
[SourceQuality "1"]
[TimeControl "5400+30"]

1. e4 {[%emt 0:00:00]} c5 {[%emt 0:02:37]} 2. Nf3 {[%emt 0:00:00]} d6 {[%emt 0:00:10]} 3. d4 {[%emt 0:00:00]} cxd4 {[%emt 0:00:06]} 4. Nxd4 {[%emt 0:00:00]} Nf6 {[%emt 0:00:05]} 5. Nc3 {[%emt 0:00:00]} a6 {[%emt 0:00:04]} 6. Be2 {[%emt 0:00:00]} e5 {[%emt 0:00:06]} 7. Nf3 {[%emt 0:00:00]} Qc7 {[%emt 0:01:17]} 8. Bg5 {[%emt 0:01:34]} Nbd7 {[%emt 0:01:43]} 9. a4 {[%emt 0:01:11]} b6 {[%emt 0:01:41]} 10. Nd2 {[%emt 0:10:08]} Bb7 {[%emt 0:05:39]} 11. Bf3 {[%emt 0:02:07]} Rc8 {[%emt 0:02:46]} 12. O-O {[%emt 0:02:23]} Be7 {[%emt 0:08:21]} 13. Qe2 {[%emt 0:04:15]} O-O {[%emt 0:04:22]} 14. Rfd1 {[%emt 0:02:07]} h6 {[%emt 0:12:42]} 15. Be3 {[%emt 0:01:48]} Rfe8 {[%emt 0:06:59]} 16. Nf1 {[%emt 0:07:28]} Bf8 {[%emt 0:04:25]} 17. Ng3 {[%emt 0:13:15]} g6 {[%emt 0:00:09]} 18. h4 {[%emt 0:02:29]} h5 {[%emt 0:01:52]} 19. Qd2 {[%emt 0:06:31]} Kh7 {[%emt 0:06:04]} 20. Bg5 {[%emt 0:00:24]} Qc6 {[%emt 0:07:32]} 21. Nf1 {[%emt 0:10:04]} Ng8 {[%emt 0:02:44]} 22. Qe2 {[%emt 0:06:54]} Qc4 {[%emt 0:11:39]} 23. Qe1 {[%emt 0:01:18]} Qb4 {[%emt 0:01:56]} 24. Bd2 {[%emt 0:06:59]} Bh6 {[%emt 0:03:30]} 25. Ne3 {[%emt 0:00:29]} Bxe3 {[%emt 0:01:18]} 26. Qxe3 {[%emt 0:00:04]} Qc5 {[%emt 0:02:06]} 27. Qd3 {[%emt 0:00:21]} Re6 {[%emt 0:03:10]} 28. Be3 {[%emt 0:09:58]} Qc4 {[%emt 0:00:37]} 29. Qd2 {[%emt 0:02:01]} Ngf6 {[%emt 0:00:37]} 30. Be2 {[%emt 0:00:31]} Qc7 {[%emt 0:01:59]} 31. f3 {[%emt 0:00:12]} d5 {[%emt 0:04:11]} 32. exd5 {[%emt 0:00:34]} Rd6 {[%emt 0:00:12]} 33. Bd3 {[%emt 0:02:58]} Nxd5 {[%emt 0:00:50]} 34. Ne4 {[%emt 0:00:06]} Rc6 {[%emt 0:01:47]} 35. Ng5+ {[%emt 0:00:45]} Kg8 {[%emt 0:01:17]} 36. Be4 {[%emt 0:00:41]} Nxe3 {[%emt 0:00:25]} 37. Bxc6 {[%emt 0:02:59]} Nxd1 {[%emt 0:00:31]} 38. Bxd7 {[%emt 0:00:09]} Rd8 {[%emt 0:00:56]} 39. Rxd1 {[%emt 0:00:04]} Qc5+ {[%emt 0:00:34]} 40. Kh1 {[%emt 0:00:54]} Qc4 {[%emt 0:00:18]} 41. Ne4 {[%emt 0:03:00]} Bc6 {[%emt 0:00:37]} 42. Qg5 {[%emt 0:00:49]} 1-0